bitfinex/quotes_BTCUSD_20210101
["timestamp","ask_amount","ask_price","bid_price","bid_amount"]
[1609511046894,1.38,29486.0,29485.0,1.6203]
[1609511047186,0.444221,29486.0,29485.0,1.6203]
[1609511047385,0.54810762,29486.0,29485.0,1.6203]
[1609511047585,0.68810762,29486.0,29485.0,0.9803]
[1609511047784,0.68810762,29486.0,29485.0,0.5082]
[1609511047989,0.68810762,29486.0,29481.0,0.645]
[1609511048288,1.364221,29485.0,29481.0,0.645]
[1609511048482,0.25,29484.0,29481.0,0.645]
[1609511048686,0.67102402,29483.0,29481.0,0.645]
[1609511049093,2.61392848,29482.0,29478.0,0.6917]
[1609511049492,0.67396635,29481.0,29477.0,0.6779]
[1609511049731,0.08,29479.0,29477.0,0.0002]
[1609511050025,0.364221,29478.0,29477.0,0.0002]
[1609511050521,0.62366641,29478.0,29477.0,0.0002]
[1609511051521,0.00201781,29478.0,29477.0,0.0002]
[1609511052321,0.27014647,29481.0,29477.0,0.0002]
[1609511052524,1.7,29480.0,29474.0,0.5083]
[1609511052719,0.28,29479.0,29474.0,0.5083]
[1609511052918,0.58,29480.0,29474.0,0.5083]
[1609511054018,0.5,29480.0,29474.0,0.5083]
[1609511054824,0.00201547,29482.0,29474.0,0.5083]
[1609511055252,0.08,29483.0,29475.0,0.03254263]
[1609511055449,0.10607703,29484.0,29474.0,0.54084263]
[1609511055650,0.08,29485.0,29474.0,0.54084263]
[1609511055853,0.364221,29484.0,29475.0,0.03254263]
[1609511056249,0.24607703,29485.0,29474.0,0.5083]
[1609511056448,0.14,29485.0,29474.0,0.60222297]
[1609511056653,0.14,29485.0,29475.0,0.1264656]
[1609511056852,1.364221,29484.0,29474.0,0.5083]
[1609511057062,0.24,29483.0,29477.0,0.6778]
[1609511057252,0.364221,29482.0,29477.0,0.6778]
[1609511057755,1.0,29481.0,29477.0,0.6778]
[1609511057962,0.364221,29480.0,29475.0,0.6778]
[1609511059254,0.08977,29481.0,29475.0,0.6778]
[1609511059457,0.179911,29483.0,29475.0,0.6778]
[1609511059658,0.364221,29482.0,29475.0,0.6778]
[1609511059854,0.245,29481.0,29475.0,0.6778]
[1609511060053,0.364221,29482.0,29475.0,0.6778]
[1609511060054,0.364221,29480.0,29475.0,0.6778]
[1609511060555,0.682172,29480.0,29475.0,0.6778]
[1609511060969,0.762172,29480.0,29475.0,0.6778]
[1609511061371,0.14,29479.0,29475.0,0.6778]
[1609511061570,0.364221,29478.0,29475.0,0.6778]
[1609511062221,0.08,29478.0,29475.0,0.6778]
[1609511062524,0.21804,29480.0,29475.0,0.6778]
[1609511062722,0.08,29481.0,29475.0,0.6778]
[1609511062923,0.08,29481.0,29475.0,0.3849]
[1609511063319,0.08,29481.0,29475.0,0.3799]
[1609511063819,0.08,29481.0,29475.0,0.3749]
[1609511064671,1.364221,29480.0,29475.0,0.3749]
[1609511064870,0.215,29479.0,29475.0,0.3749]
[1609511065167,0.364221,29478.0,29475.0,0.3749]
[1609511065369,0.08,29477.0,29475.0,0.3749]
[1609511065569,0.364221,29476.0,29475.0,0.3749]
[1609511066768,0.464132,29476.0,29475.0,0.3749]
[1609511066965,0.364221,29476.0,29475.0,0.3749]
[1609511067569,0.08,29477.0,29475.0,0.3749]
[1609511067772,0.08,29477.0,29475.0,0.2281]
[1609511067972,0.364221,29476.0,29475.0,0.2281]
[1609511068268,0.099911,29476.0,29475.0,0.2281]
[1609511068469,0.08,29477.0,29475.0,0.2281]
[1609511069470,0.364221,29476.0,29475.0,0.2281]
[1609511069875,0.08,29477.0,29475.0,0.2281]
[1609511070071,0.364221,29476.0,29475.0,0.2281]
[1609511070481,0.08,29479.0,29475.0,0.2281]
[1609511070784,0.08202283,29479.0,29475.0,0.2281]
[1609511071085,0.364221,29478.0,29475.0,0.2281]
[1609511071391,1.444221,29477.0,29475.0,0.2281]
[1609511071682,0.634221,29476.0,29475.0,0.2281]
[1609511072079,1.634221,29476.0,29475.0,0.2281]
[1609511072281,0.714221,29476.0,29475.0,0.2281]
[1609511072487,1.44624335,29476.0,29475.0,0.2281]
[1609511072882,1.44826592,29476.0,29475.0,0.2281]
[1609511073084,1.44826592,29476.0,29475.0,0.2234]
[1609511073285,2.09826592,29476.0,29475.0,0.2234]
[1609511073494,0.364221,29475.0,29473.0,0.001]
[1609511073986,2.606462,29474.0,29473.0,0.001]
[1609511074186,1.081462,29474.0,29473.0,0.001]
[1609511074387,0.556551,29474.0,29473.0,0.001]
[1609511074588,0.636551,29474.0,29473.0,0.001]
[1609511075789,1.81044184,29474.0,29473.0,0.001]
[1609511076031,1.08044184,29474.0,29473.0,0.001]
[1609511076334,1.00044184,29474.0,29473.0,0.001]
[1609511076629,0.73044184,29474.0,29473.0,0.001]
[1609511077463,0.83035284,29474.0,29473.0,0.001]
[1609511077667,0.91035284,29474.0,29473.0,0.001]
[1609511077858,1.04535284,29474.0,29473.0,0.001]
[1609511078265,1.04535284,29474.0,29471.0,0.3672]
[1609511078763,0.17365675,29473.0,29471.0,0.3672]
[1609511079057,0.364221,29472.0,29471.0,0.3672]
[1609511079894,0.444221,29472.0,29471.0,0.3672]
[1609511080099,0.5379843,29472.0,29471.0,0.3672]
[1609511080300,0.7129843,29472.0,29471.0,0.3672]
[1609511083445,0.7129843,29472.0,29471.0,0.2223]
[1609511084406,0.7929843,29472.0,29471.0,0.2223]
[1609511087723,0.7919913,29472.0,29471.0,0.2223]
[1609511088523,0.7919913,29472.0,29471.0,0.0781]
[1609511090027,0.7919913,29472.0,29471.0,0.06805284]
[1609511093706,1.2919913,29472.0,29468.0,0.77305284]
[1609511093908,0.135,29471.0,29468.0,0.77305284]
[1609511094608,0.17326915,29470.0,29468.0,0.77305284]
[1609511095063,0.17326915,29470.0,29469.0,1.2586]
[1609511095965,0.17335741,29471.0,29469.0,1.2586]
[1609511096264,0.17336613,29470.0,29469.0,1.2586]
[1609511097467,0.17377393,29471.0,29469.0,1.2586]
[1609511098366,0.5804076,29476.0,29469.0,1.2586]
[1609511098587,0.5804076,29476.0,29469.0,1.1159]
[1609511098789,0.17458166,29475.0,29469.0,1.1159]
[1609511099188,0.17458166,29475.0,29469.0,1.792]
[1609511099391,0.17458166,29475.0,29470.0,0.4516]
[1609511101495,0.16958166,29475.0,29470.0,0.4516]
[1609511101701,0.17467777,29474.0,29470.0,0.4516]
[1609511102401,0.17464667,29475.0,29470.0,0.4516]
[1609511102998,0.50169949,29475.0,29470.0,0.4516]
[1609511103397,0.364223,29474.0,29470.0,0.4516]
[1609511103796,0.364223,29474.0,29470.0,0.3076]
[1609511104425,0.17471731,29473.0,29470.0,0.3076]
[1609511104627,0.364223,29472.0,29470.0,0.3076]
[1609511105027,0.17473634,29471.0,29470.0,0.3076]
[1609511106632,0.53895934,29471.0,29470.0,0.3076]
[1609511106831,0.53895934,29471.0,29469.0,1.042]
[1609511107037,0.17473634,29471.0,29469.0,1.042]
[1609511108840,0.17473634,29471.0,29469.0,0.898]
[1609511109643,0.364223,29470.0,29469.0,0.898]
[1609511109886,0.17473634,29471.0,29469.0,0.898]
[1609511110685,0.364223,29470.0,29469.0,0.2219]
[1609511110884,0.499223,29470.0,29469.0,0.2219]
[1609511111388,0.31524441,29470.0,29469.0,0.2219]
[1609511111583,0.67946741,29470.0,29469.0,0.2219]
[1609511112388,0.31524441,29470.0,29469.0,0.2219]
[1609511113985,0.31524441,29470.0,29469.0,0.0807]
[1609511119156,0.31524441,29470.0,29469.0,0.5086]
[1609511123082,0.31524441,29470.0,29469.0,0.5090072]
[1609511123882,0.31524441,29470.0,29469.0,0.3671072]
[1609511125634,0.31524441,29470.0,29469.0,0.3621072]
[1609511127543,0.31524441,29470.0,29469.0,0.3571072]
[1609511129076,0.31524441,29470.0,29469.0,0.2144072]
[1609511129277,0.18024441,29470.0,29469.0,0.2144072]
[1609511129977,0.32738551,29472.0,29469.0,0.2144072]
[1609511129978,0.51081326,29472.0,29469.0,0.2144072]
[1609511130478,0.17852726,29470.0,29469.0,1.5644072]
[1609511130673,0.17852726,29470.0,29469.0,0.2144072]
[1609511130879,0.18337419,29471.0,29469.0,0.2144072]
[1609511131278,0.18339365,29470.0,29469.0,0.2144072]
[1609511132340,0.51095873,29472.0,29469.0,0.2144072]
[1609511132980,0.18343382,29470.0,29469.0,0.2144072]
[1609511134084,0.08,29471.0,29469.0,0.0726072]
[1609511134298,0.18345169,29470.0,29469.0,0.0726072]
[1609511134793,0.18345169,29470.0,29469.0,0.0676072]
[1609511139121,0.26419382,29471.0,29468.0,0.63776004]
[1609511139523,0.18424268,29470.0,29468.0,0.63776004]
[1609511141083,0.18424268,29470.0,29469.0,0.5086]
[1609511143904,0.18429395,29471.0,29469.0,0.5086]
[1609511144099,0.18429395,29471.0,29469.0,0.3659]
[1609511144405,0.26429395,29471.0,29469.0,0.3659]
[1609511144807,0.18853697,29470.0,29469.0,0.3659]
[1609511145205,0.51744698,29472.0,29469.0,0.3659]
[1609511146406,0.18911714,29472.0,29469.0,0.3659]
[1609511149222,0.18911714,29472.0,29469.0,0.224]
[1609511150125,0.51738906,29472.0,29469.0,0.224]
[1609511154458,0.51738906,29472.0,29469.0,0.0814]
[1609511155290,0.18911714,29472.0,29469.0,0.0814]
[1609511157786,0.51790195,29472.0,29469.0,0.0814]
[1609511159391,0.51790195,29472.0,29469.0,0.5086]
[1609511164311,0.33028296,29471.0,29469.0,0.3674]
[1609511165412,0.51940926,29472.0,29469.0,0.3674]
[1609511168292,0.33036315,29471.0,29469.0,0.3674]
[1609511169494,0.33036315,29471.0,29469.0,0.2252]
[1609511170329,0.51948163,29472.0,29469.0,0.2252]
[1609511170529,0.51948163,29472.0,29469.0,0.2202]
[1609511171133,0.55551358,29472.0,29469.0,0.2202]
[1609511171534,0.18581522,29471.0,29469.0,0.2202]
[1609511174334,0.18581522,29471.0,29469.0,0.0788]
[1609511176075,0.13581522,29471.0,29469.0,0.0788]
[1609511176280,0.1844374,29470.0,29469.0,0.0788]
[1609511176978,0.18443666,29471.0,29469.0,0.0788]
[1609511177179,0.18443666,29471.0,29470.0,0.135]
[1609511177384,0.18443666,29471.0,29469.0,0.0788]
[1609511179399,0.18443666,29471.0,29469.0,0.5086]
[1609511184437,0.364223,29470.0,29469.0,0.5086]
[1609511184637,0.845873,29470.0,29469.0,0.3653]
[1609511185072,1.03122927,29470.0,29469.0,0.3653]
[1609511185969,0.66700627,29470.0,29469.0,0.3653]
[1609511186474,1.03122927,29470.0,29469.0,0.3653]
[1609511187173,1.36062496,29470.0,29469.0,0.3653]
[1609511187572,0.99640196,29470.0,29469.0,0.3653]
[1609511188376,0.66700627,29470.0,29469.0,0.3653]
[1609511189574,0.66700627,29470.0,29469.0,0.2241]
[1609511189782,0.66700627,29470.0,29466.0,0.87496004]
[1609511191100,0.18519453,29469.0,29468.0,0.8471]
[1609511191991,0.18500976,29470.0,29468.0,0.8471]
[1609511192594,0.18483125,29469.0,29468.0,0.8471]
[1609511192996,2.23474225,29469.0,29468.0,0.8471]
[1609511193207,2.30680302,29468.0,29466.0,0.22146004]
[1609511193407,2.30680302,29466.0,29465.0,0.001]
[1609511193601,3.544134,29466.0,29465.0,0.001]
[1609511193804,5.09823271,29466.0,29465.0,0.001]
[1609511194203,5.40503573,29466.0,29465.0,0.001]
[1609511194399,5.07707661,29466.0,29465.0,0.001]
[1609511194597,5.07707661,29466.0,29464.0,0.0004]
[1609511194805,0.30680302,29464.0,29461.0,0.4857]
[1609511195005,0.30680302,29462.0,29461.0,0.4857]
[1609511195205,0.364223,29462.0,29461.0,0.4857]
[1609511195398,0.88693036,29462.0,29461.0,0.4857]
[1609511195598,1.03193036,29462.0,29461.0,0.4857]
[1609511195796,0.91672994,29462.0,29461.0,0.4857]
[1609511196244,0.78422275,29462.0,29461.0,0.4857]
[1609511197245,0.78422275,29462.0,29461.0,0.51824263]
[1609511197767,0.78422275,29462.0,29461.0,0.4857]
[1609511198373,0.41999975,29462.0,29461.0,0.4857]
[1609511198569,0.27499975,29462.0,29461.0,0.4857]
[1609511199769,0.27499975,29462.0,29461.0,0.3446]
[1609511199999,0.27499975,29462.0,29461.0,0.37714263]
[1609511200203,0.27499975,29462.0,29461.0,0.3446]
[1609511200607,0.39757227,29462.0,29461.0,0.37714263]
[1609511201206,0.39757227,29462.0,29461.0,0.3446]
[1609511203709,0.31757227,29462.0,29461.0,0.3446]
[1609511203914,0.38457143,29462.0,29461.0,5.82138263]
[1609511204120,0.32690157,29469.0,29461.0,6.1903056]
[1609511204326,0.03603195,29472.0,29468.0,5.65030551]
[1609511204521,0.03603195,29472.0,29471.0,5.55534288]
[1609511204725,0.07079447,29480.0,29471.0,5.34392297]
[1609511204917,0.1,29482.0,29472.0,5.3764656]
[1609511205122,0.1,29482.0,29477.0,0.60222297]
[1609511205319,0.1,29482.0,29478.0,0.03254263]
[1609511206858,0.1,29482.0,29480.0,0.77162297]
[1609511207261,0.1,29482.0,29481.0,4.73392297]
[1609511207455,0.1,29482.0,29481.0,4.64]
[1609511207655,0.1,29482.0,29481.0,0.24]
[1609511207853,0.1,29482.0,29481.0,1.49]
[1609511208754,0.1,29482.0,29481.0,2.24]
[1609511209158,0.1,29482.0,29481.0,0.24]
[1609511209779,0.1,29482.0,29480.0,0.635]
[1609511214807,0.1,29482.0,29480.0,0.4929]
[1609511217138,0.1,29482.0,29480.0,0.4919]
[1609511217744,0.08208211,29481.0,29480.0,0.4919]
[1609511218799,0.08208211,29481.0,29480.0,1.4919]
[1609511219448,0.27301243,29481.0,29480.0,0.4919]
[1609511219651,0.37292343,29481.0,29480.0,0.4919]
[1609511219854,0.37292343,29481.0,29480.0,0.3496]
[1609511219855,2.344134,29481.0,29480.0,0.3496]
[1609511220057,1.784223,29481.0,29480.0,0.3496]
[1609511220252,2.23676249,29481.0,29480.0,0.3496]
[1609511220456,2.15480493,29481.0,29480.0,0.14312618]
[1609511220675,2.94723956,29481.0,29480.0,0.14312618]
[1609511221373,3.09223956,29481.0,29480.0,0.14312618]
[1609511222378,3.55237201,29481.0,29480.0,0.14312618]
[1609511222776,2.99232856,29481.0,29480.0,0.14312618]
[1609511224436,3.09223956,29481.0,29480.0,0.14312618]
[1609511224832,3.09223956,29481.0,29480.0,0.00212618]
[1609511225331,3.55256454,29481.0,29480.0,0.00212618]
[1609511226134,3.09223956,29481.0,29480.0,0.00212618]
[1609511226334,3.5463556,29481.0,29480.0,0.00212618]
[1609511226932,3.65243263,29481.0,29480.0,0.00212618]
[1609511227642,3.5463556,29481.0,29480.0,0.00212618]
[1609511229740,3.55252163,29481.0,29480.0,0.00212618]
[1609511230078,2.55898259,29481.0,29480.0,0.00142618]
[1609511230381,2.19831659,29481.0,29480.0,0.00142618]
[1609511233283,2.09840559,29481.0,29480.0,0.00142618]
[1609511234484,3.09194463,29481.0,29480.0,0.00142618]
[1609511234793,2.7,29480.0,29479.0,0.56562618]
[1609511235093,5.34375007,29480.0,29479.0,0.56562618]
[1609511235286,5.99791088,29480.0,29479.0,0.56562618]
[1609511235488,3.29791088,29480.0,29479.0,0.56562618]
[1609511235724,3.27183385,29480.0,29479.0,0.56562618]
[1609511236121,2.75183385,29480.0,29479.0,0.56562618]
[1609511237022,1.75829481,29480.0,29479.0,0.56562618]
[1609511237523,2.75183385,29480.0,29479.0,0.56562618]
[1609511237722,2.28523589,29480.0,29479.0,0.56562618]
[1609511238126,2.75174415,29480.0,29479.0,0.56562618]
[1609511238323,3.27174415,29480.0,29479.0,0.56562618]
[1609511238523,1.75820511,29480.0,29479.0,0.56562618]
[1609511239128,2.28523589,29480.0,29479.0,0.56562618]
[1609511239847,1.75822142,29480.0,29479.0,0.56562618]
[1609511240048,2.75176046,29480.0,29479.0,0.56042618]
[1609511240246,1.75822142,29480.0,29479.0,0.56042618]
[1609511240552,2.27222142,29480.0,29479.0,0.56042618]
[1609511240749,2.27222142,29480.0,29479.0,0.33894331]
[1609511240750,1.80569685,29480.0,29479.0,0.33894331]
[1609511240955,1.18578585,29480.0,29479.0,0.33894331]
[1609511241353,1.82340041,29480.0,29479.0,0.33894331]
[1609511241550,1.30340041,29480.0,29479.0,0.33894331]
[1609511243481,1.28569685,29480.0,29479.0,0.33894331]
[1609511243785,1.39177388,29480.0,29479.0,0.33894331]
[1609511243983,1.28569685,29480.0,29479.0,0.33894331]
[1609511244181,1.18578585,29480.0,29479.0,0.33894331]
[1609511245138,1.80569685,29480.0,29479.0,0.19964331]
[1609511245334,1.91177388,29480.0,29479.0,0.19964331]
[1609511245840,1.80569685,29480.0,29479.0,0.19964331]
[1609511246039,1.70578585,29480.0,29479.0,0.19964331]
[1609511247936,1.18578585,29480.0,29479.0,0.19964331]
[1609511248641,1.80569685,29480.0,29479.0,0.19964331]
[1609511249667,1.70578585,29480.0,29479.0,0.19964331]
[1609511250066,1.70578585,29480.0,29479.0,0.05824331]
[1609511250465,2.40578585,29480.0,29479.0,0.0405467]
[1609511250671,1.84578585,29480.0,29479.0,0.0405467]
[1609511250967,1.94578585,29480.0,29479.0,0.0405467]
[1609511251168,2.12078585,29480.0,29479.0,0.0405467]
[1609511252368,1.94578585,29480.0,29479.0,0.0405467]
[1609511253968,1.84578585,29480.0,29479.0,0.0405467]
[1609511254169,1.94578585,29480.0,29479.0,0.0405467]
[1609511255112,1.2,29479.0,29478.0,0.5773467]
[1609511255313,0.944223,29479.0,29478.0,0.5773467]
[1609511255720,1.12755185,29479.0,29478.0,0.5773467]
[1609511256214,0.76332885,29479.0,29478.0,0.5773467]
[1609511256412,0.18332885,29479.0,29478.0,0.5773467]
[1609511256620,0.18332885,29479.0,29478.0,0.7773467]
[1609511256827,0.79243463,29481.0,29479.0,1.56748]
[1609511257014,0.11483463,29481.0,29479.0,1.56748]
[1609511257419,0.07075622,29483.0,29480.0,1.95]
[1609511257642,0.01770367,29486.0,29482.0,0.7]
[1609511257833,0.01770367,29486.0,29480.0,0.2]
[1609511258225,0.01770367,29486.0,29480.0,0.195]
[1609511258824,0.01770367,29486.0,29479.0,0.84948]
[1609511259030,0.01770367,29486.0,29481.0,0.6777]
[1609511259235,0.18,29488.0,29482.0,0.2]
[1609511259433,0.364223,29487.0,29482.0,0.2]
[1609511259634,0.235,29490.0,29482.0,0.2]
[1609511259635,0.315,29490.0,29482.0,0.2]
[1609511259833,0.364223,29489.0,29481.0,0.12302787]
[1609511260027,0.0002,29491.0,29481.0,0.12302787]
[1609511260268,0.364223,29490.0,29484.0,0.5083]
[1609511261768,0.364223,29488.0,29484.0,0.5083]
[1609511261967,0.2,29487.0,29484.0,0.5083]
[1609511262164,0.364223,29486.0,29483.0,0.49024827]
[1609511262367,0.364223,29486.0,29484.0,0.5083]
[1609511263858,0.36310199,29486.0,29484.0,0.5083]
[1609511264662,0.32936354,29485.0,29484.0,0.5083]
[1609511265062,0.32936354,29485.0,29484.0,0.3653]
[1609511265266,0.364216,29485.0,29484.0,0.3653]
[1609511265567,0.32924827,29486.0,29484.0,0.3653]
[1609511265788,0.32924827,29486.0,29484.0,1.1014]
[1609511266793,0.364216,29486.0,29484.0,1.1014]
[1609511267102,0.145,29485.0,29484.0,1.2647]
[1609511267595,0.32919742,29487.0,29484.0,1.2647]
[1609511268093,0.364216,29486.0,29484.0,1.2647]
[1609511268295,0.32919742,29487.0,29484.0,1.2647]
[1609511268901,0.3291919,29488.0,29484.0,1.2597]
[1609511269402,0.3291919,29488.0,29485.0,0.03254263]
[1609511269901,0.32936173,29489.0,29485.0,0.03254263]
[1609511270798,0.32943522,29490.0,29485.0,0.03254263]
[1609511271199,0.32955854,29491.0,29485.0,0.03254263]
[1609511271419,0.32955854,29491.0,29485.0,0.69424263]
[1609511271620,0.0002,29491.0,29485.0,0.69424263]
[1609511271817,0.0002,29491.0,29486.0,0.03254263]
[1609511272121,0.0002,29491.0,29488.0,0.5081]
[1609511275247,0.0002,29491.0,29488.0,0.2223]
[1609511275561,0.464127,29490.0,29488.0,0.2223]
[1609511275754,0.57020403,29490.0,29488.0,0.2223]
[1609511276055,0.464127,29490.0,29488.0,0.2223]
[1609511276658,0.54323147,29489.0,29488.0,0.2223]
[1609511276852,0.8393085,29489.0,29488.0,0.2223]
[1609511277956,1.16818385,29489.0,29488.0,0.01586712]
[1609511278457,0.8393085,29489.0,29488.0,0.01586712]
[1609511278656,0.73323147,29489.0,29488.0,0.01586712]
[1609511279681,1.06214496,29489.0,29488.0,0.01586712]
[1609511280086,1.16822199,29489.0,29488.0,0.01586712]
[1609511280283,1.16822199,29489.0,29487.0,0.6775]
[1609511280284,0.364216,29488.0,29487.0,0.55216712]
[1609511280481,0.71029303,29488.0,29487.0,0.55216712]
[1609511280685,0.604216,29488.0,29487.0,0.55216712]
[1609511281790,0.77705127,29488.0,29487.0,0.55216712]
[1609511282587,0.8831283,29488.0,29487.0,0.55216712]
[1609511283086,0.77705127,29488.0,29487.0,0.55216712]
[1609511283288,1.10597357,29488.0,29487.0,0.55216712]
[1609511284090,0.77705127,29488.0,29487.0,0.55216712]
[1609511285221,1.10602605,29488.0,29487.0,0.55216712]
[1609511285528,1.10602605,29488.0,29487.0,0.40976712]
[1609511286829,0.77205127,29488.0,29487.0,0.40976712]
[1609511287028,0.53205127,29488.0,29487.0,0.40976712]
[1609511289801,0.86146644,29488.0,29487.0,0.40976712]
[1609511290424,0.86146644,29488.0,29487.0,0.26866712]
[1609511295732,0.86146644,29488.0,29487.0,0.26286712]
[1609511299459,0.86146644,29488.0,29487.0,0.17853513]
[1609511300359,0.85646644,29488.0,29487.0,0.17853513]
[1609511300660,0.85646644,29488.0,29487.0,0.03653513]
[1609511302015,0.50225044,29488.0,29487.0,0.03653513]
[1609511302521,0.82923474,29488.0,29487.0,0.03653513]
[1609511302738,0.82923474,29488.0,29487.0,1.28653513]
[1609511302943,0.82923474,29488.0,29487.0,1.29862213]
[1609511303744,0.82923474,29488.0,29487.0,2.04862213]
[1609511304745,0.82923474,29488.0,29487.0,1.29862213]
[1609511305874,0.50225044,29488.0,29487.0,1.83272213]
[1609511306079,0.0002,29491.0,29488.0,1.05]
[1609511306577,0.0002,29491.0,29487.0,0.6775]
[1609511306974,0.0002,29491.0,29487.0,1.135]
[1609511307176,0.0002,29491.0,29488.0,0.5081]
[1609511307584,0.3267835,29489.0,29488.0,0.5081]
[1609511308177,0.3267835,29489.0,29488.0,0.512294]
[1609511308777,0.3267835,29489.0,29488.0,1.162294]
[1609511309579,0.3267835,29489.0,29488.0,0.512294]
[1609511309776,0.3267835,29489.0,29488.0,1.162294]
[1609511309978,0.3267835,29489.0,29488.0,0.512294]
[1609511310779,0.3267835,29489.0,29488.0,1.269494]
[1609511311014,0.3267835,29489.0,29488.0,0.369494]
[1609511311617,0.32633546,29490.0,29488.0,0.35741]
[1609511312113,0.0002,29491.0,29488.0,0.35741]
[1609511312816,0.3263054,29490.0,29488.0,0.35741]
[1609511313023,0.3263054,29490.0,29488.0,0.356589]
[1609511315857,0.364215,29489.0,29488.0,0.356589]
[1609511316054,0.464215,29489.0,29488.0,0.212689]
[1609511316356,0.509215,29489.0,29488.0,0.212689]
[1609511317256,0.609215,29489.0,29488.0,0.212689]
[1609511317456,0.509215,29489.0,29488.0,0.212689]
[1609511319078,0.145,29489.0,29488.0,0.211868]
[1609511319282,0.3263054,29490.0,29488.0,0.211868]
[1609511319480,0.364215,29489.0,29488.0,0.211868]
[1609511321237,0.86168083,29489.0,29488.0,0.065468]
[1609511321432,1.00668083,29489.0,29488.0,0.065468]
[1609511321936,0.6805336,29489.0,29488.0,0.065468]
[1609511322133,1.00665357,29489.0,29488.0,0.065468]
[1609511323538,0.6805336,29489.0,29488.0,0.065468]
[1609511324059,1.00679496,29489.0,29488.0,0.065468]
[1609511324463,1.51303242,29489.0,29488.0,0.065468]
[1609511324661,1.61910945,29489.0,29488.0,0.065468]
[1609511324865,1.51303242,29489.0,29488.0,0.065468]
[1609511325368,1.61910945,29489.0,29488.0,0.065468]
[1609511325565,2.95818849,29489.0,29488.0,0.065468]
[1609511325767,3.15818849,29489.0,29488.0,0.065468]
[1609511325962,2.95818849,29489.0,29488.0,0.065468]
[1609511326265,2.62692713,29489.0,29488.0,0.065468]
[1609511326665,3.06020208,29489.0,29488.0,0.065468]
[1609511326860,2.06666304,29489.0,29488.0,0.065468]
[1609511327061,1.82112304,29489.0,29488.0,0.065468]
[1609511327263,2.38138713,29489.0,29488.0,0.065468]
[1609511327460,1.38784809,29489.0,29488.0,0.065468]
[1609511328473,2.90138713,29489.0,29488.0,0.065468]
[1609511328666,1.38784809,29489.0,29487.0,0.6775]
[1609511328972,0.90529203,29488.0,29487.0,0.6775]
[1609511329166,0.799215,29488.0,29487.0,0.6775]
[1609511329689,0.96842731,29488.0,29487.0,0.6775]
[1609511329890,1.07450434,29488.0,29487.0,0.6775]
[1609511330087,0.96842731,29488.0,29487.0,0.6775]
[1609511335472,0.53342731,29488.0,29487.0,0.6775]
[1609511338370,1.05342731,29488.0,29487.0,0.6775]
[1609511338569,1.33842731,29488.0,29487.0,0.6775]
[1609511339197,0.81842731,29488.0,29487.0,0.6775]
[1609511339401,0.89842731,29488.0,29487.0,0.6775]
[1609511339599,0.81842731,29488.0,29487.0,0.6775]
[1609511342504,1.53842731,29488.0,29487.0,0.6775]
[1609511342710,0.81842731,29488.0,29487.0,0.6775]
[1609511349447,0.53342731,29488.0,29487.0,0.6775]
[1609511352398,0.68842731,29488.0,29487.0,0.6775]
[1609511356431,0.62952731,29488.0,29487.0,0.6775]
[1609511361167,0.59288802,29488.0,29487.0,0.6775]
[1609511362070,0.69288802,29488.0,29487.0,0.6775]
[1609511362270,1.68642706,29488.0,29487.0,0.6775]
[1609511362473,2.31250409,29488.0,29487.0,0.6775]
[1609511362889,2.39250409,29488.0,29487.0,0.6775]
[1609511363089,5.19250409,29488.0,29487.0,0.47105527]
[1609511363275,5.60250409,29488.0,29487.0,0.47105527]
[1609511363477,2.80250409,29488.0,29487.0,0.47105527]
[1609511363685,3.21483127,29488.0,29487.0,0.47105527]
[1609511364982,4.18983127,29488.0,29487.0,0.47105527]
[1609511366009,3.19629223,29488.0,29487.0,0.47105527]
[1609511366211,4.18983127,29488.0,29487.0,0.47105527]
[1609511366408,3.19629223,29488.0,29487.0,0.47105527]
[1609511366615,4.18983127,29488.0,29487.0,0.47105527]
[1609511367613,4.17983127,29488.0,29487.0,0.46605527]
[1609511368514,4.35983127,29488.0,29487.0,0.46605527]
[1609511368714,4.46333127,29488.0,29487.0,0.46605527]
[1609511369317,3.46333127,29488.0,29487.0,0.46605527]
[1609511369615,2.46979223,29488.0,29487.0,0.46605527]
[1609511369817,2.28979223,29488.0,29487.0,0.46605527]
[1609511370018,2.46979223,29488.0,29487.0,0.46605527]
[1609511370216,3.17983127,29488.0,29487.0,0.46605527]
[1609511370517,2.76750409,29488.0,29487.0,0.46605527]
[1609511370815,2.02816506,29488.0,29487.0,0.46605527]
[1609511371066,2.82816506,29488.0,29487.0,0.46605527]
[1609511371369,3.42104378,29488.0,29487.0,0.46605527]
[1609511371568,3.56265378,29488.0,29487.0,0.46605527]
[1609511371865,3.63394378,29488.0,29487.0,0.46605527]
[1609511372069,3.45394378,29488.0,29487.0,0.46605527]
[1609511372467,3.37001378,29488.0,29487.0,0.46605527]
[1609511372669,3.24104378,29488.0,29487.0,0.46605527]
[1609511372901,3.42104378,29488.0,29487.0,0.46605527]
[1609511373069,3.29139378,29488.0,29487.0,0.46605527]
[1609511373267,3.48236378,29488.0,29487.0,0.46605527]
[1609511375185,3.66236378,29488.0,29487.0,0.46605527]
[1609511375383,3.48236378,29488.0,29487.0,0.46605527]
[1609511375586,3.66236378,29488.0,29487.0,0.46605527]
[1609511375982,3.48236378,29488.0,29487.0,0.46605527]
[1609511376684,2.68236378,29488.0,29487.0,0.46605527]
[1609511377488,2.26948506,29488.0,29487.0,0.46605527]
[1609511377914,3.01948506,29488.0,29487.0,0.46605527]
[1609511378408,2.16340803,29488.0,29487.0,0.46605527]
[1609511378607,2.45945685,29488.0,29487.0,0.46605527]
[1609511378816,2.56553388,29488.0,29487.0,0.46605527]
[1609511379008,2.58609685,29488.0,29487.0,0.46605527]
[1609511379207,1.92208803,29488.0,29487.0,0.46605527]
[1609511379412,3.0217041,29488.0,29487.0,0.46605527]
[1609511379613,3.2963541,29488.0,29487.0,0.46605527]
[1609511379810,4.3706941,29488.0,29487.0,0.46605527]
[1609511380010,2.64112005,29488.0,29487.0,0.46605527]
[1609511380463,2.14715506,29488.0,29487.0,0.46605527]
[1609511380763,2.15250506,29488.0,29487.0,0.46605527]
[1609511380962,2.80250506,29488.0,29487.0,0.46605527]
[1609511381167,2.67816506,29488.0,29487.0,0.46605527]
[1609511381565,2.02816506,29488.0,29487.0,0.46605527]
[1609511381862,3.2217041,29488.0,29487.0,0.46605527]